bitfinex-derivatives/quotes_ETHF0:USTF0_20240920
["timestamp","ask_amount","ask_price","bid_price","bid_amount"]
[1726847677468,1.02319706,2553.3,2553.2,0.39164]
[1726847677968,1.02319706,2553.3,2552.9,6.1397]
[1726847678268,4.18678,2553.6,2553.3,0.39163]
[1726847678269,1.02319706,2553.4,2553.3,0.39163]
[1726847678470,1.02319706,2553.5,2553.4,0.39161]
[1726847678859,1.02319706,2553.7,2553.6,0.39158]
[1726847679063,1.02276012,2553.7,2553.6,0.39158]
[1726847679473,1.92662045,2553.9,2553.7,0.39156]
[1726847679474,1.02276012,2553.8,2553.7,0.39156]
[1726847680069,1.41431012,2553.8,2553.6,0.39157]
[1726847680279,1.02276012,2553.8,2553.6,0.39157]
[1726847680662,1.02276012,2553.8,2553.7,0.39156]
[1726847681072,1.02276012,2553.9,2553.8,0.39155]
[1726847681270,1.02276012,2554.0,2553.9,0.39153]
[1726847681467,1.02276012,2554.0,2553.7,14.9538]
[1726847681468,1.02276012,2554.1,2554.0,0.39152]
[1726847681863,1.02276012,2554.1,2554.0,4.30672]
[1726847682173,1.02276012,2554.2,2554.1,0.3915]
[1726847682472,0.39148,2554.3,2554.1,0.3915]
[1726847682473,1.02276012,2554.3,2554.1,0.3915]
[1726847683267,1.02276012,2554.3,2554.1,0.39149]
[1726847683668,1.41423012,2554.3,2554.1,0.3915]
[1726847683869,1.02276012,2554.2,2554.1,0.3915]
[1726847685268,1.02276012,2554.2,2554.1,4.3067]
[1726847685470,1.02276012,2554.3,2554.2,0.39149]
[1726847685673,1.02276012,2554.4,2554.3,0.39147]
[1726847685869,1.02276012,2554.5,2554.4,0.39146]
[1726847686075,1.02326372,2554.5,2554.4,3.2078]
[1726847686264,1.02326372,2554.5,2554.4,7.51364]
[1726847686463,1.02326372,2554.6,2554.4,7.1222]
[1726847686668,1.02326372,2554.6,2554.4,3.59925]
[1726847687372,1.02326372,2554.6,2554.4,0.39145]
[1726847687574,1.02326372,2554.5,2554.4,0.39145]
[1726847687770,1.02326372,2554.5,2554.1,0.3739]
[1726847688066,1.02326372,2554.5,2554.4,0.39146]
[1726847688266,1.02313675,2554.9,2554.8,0.3914]
[1726847688466,2.40613796,2555.4,2554.8,12.0942]
[1726847688670,0.3914,2555.5,2555.3,0.39131]
[1726847688868,0.3914,2555.5,2554.8,12.0942]
[1726847688869,0.78269,2555.5,2555.2,0.39133]
[1726847689085,0.3914,2555.5,2555.1,0.39134]
[1726847689272,1.36965,2555.5,2554.9,0.39137]
[1726847689484,1.36965,2555.5,2554.8,11.7028]
[1726847689779,1.36965,2555.5,2555.1,0.39134]
[1726847689970,0.3913,2555.4,2555.1,0.39134]
[1726847690367,0.3913,2555.4,2555.2,0.39133]
[1726847690570,0.39133,2555.3,2555.0,0.39135]
[1726847690769,0.3914,2555.5,2555.1,6.11334]
[1726847690971,0.39133,2555.3,2555.1,5.722]
[1726847691376,0.39131,2555.4,2555.1,6.11334]
[1726847691670,0.3913,2555.4,2555.1,6.11334]
[1726847692377,0.3913,2555.4,2555.2,0.39133]
[1726847692690,0.39132,2555.3,2555.2,0.39133]
[1726847692871,0.39133,2555.2,2555.1,5.722]
[1726847693065,4.18608,2555.4,2554.8,3.6073]
[1726847693367,4.18608,2555.4,2554.5,0.97859]
[1726847693368,0.97838,2555.1,2554.5,3.2078]
[1726847693576,0.39144,2554.5,2554.3,15.513]
[1726847693772,0.39145,2554.5,2554.4,0.39145]
[1726847693971,0.97854,2554.7,2554.3,10.18346]
[1726847694170,1.17466,2554.4,2554.3,9.792]
[1726847694371,1.17466,2554.4,2554.3,10.18347]
[1726847694372,0.7832,2554.4,2554.3,10.18347]
[1726847695166,0.3717,2555.0,2554.5,0.39144]
[1726847695167,0.97846,2554.9,2554.5,0.39144]
[1726847695379,0.39142,2554.7,2554.5,0.39144]
[1726847695877,0.39145,2554.5,2554.3,10.18347]
[1726847696085,0.97853,2554.7,2554.4,0.39145]
[1726847696281,3.2078,2554.8,2554.3,9.792]
[1726847696480,0.39145,2554.5,2554.3,9.792]
[1726847696778,0.3869,2554.4,2554.3,10.18346]
[1726847697173,4.3021,2554.4,2553.7,3.2078]
[1726847697372,4.3021,2554.4,2553.5,5.721]
[1726847697373,0.39155,2553.9,2553.5,5.721]
[1726847697573,0.3869,2553.8,2553.7,0.39156]
[1726847697977,0.3869,2553.8,2553.7,4.30756]
[1726847698286,0.77839,2554.2,2553.7,7.1238]
[1726847698484,0.77839,2554.2,2553.5,6.69997]
[1726847698677,0.77839,2554.2,2553.9,0.39153]
[1726847699176,0.77839,2554.2,2553.7,3.2078]
[1726847699177,0.39152,2554.0,2553.7,0.39156]
[1726847699387,0.39151,2554.1,2553.8,0.39154]
[1726847699580,0.3869,2554.2,2553.7,0.39156]
[1726847699778,0.39151,2554.1,2553.8,0.39154]
[1726847699978,0.3869,2554.2,2553.6,3.2078]
[1726847700782,0.3869,2554.2,2553.7,0.97892]
[1726847700977,1.36695,2554.7,2554.2,0.39148]
[1726847700978,0.39145,2554.5,2554.2,0.39148]
[1726847701582,0.39145,2554.5,2553.9,3.2078]
[1726847701583,0.3777,2554.6,2553.9,3.2078]
[1726847701786,0.3777,2554.6,2554.4,0.39145]
[1726847701979,0.3777,2554.6,2554.5,0.39144]
[1726847702291,0.76913,2554.6,2554.4,5.722]
[1726847702676,2.01482796,2555.0,2554.5,3.9144]
[1726847702677,2.40620796,2555.0,2554.5,3.9144]
[1726847702877,0.3914,2554.8,2554.5,4.36433]
[1726847703191,0.3914,2554.8,2554.5,1.15654]
[1726847703484,0.3914,2554.8,2554.1,0.3878]
[1726847703485,0.39149,2554.2,2554.1,0.3878]
[1726847703681,8.60262796,2555.0,2554.0,0.39151]
[1726847703682,0.39148,2554.3,2554.0,0.39151]
[1726847703879,0.39147,2554.4,2554.1,0.3915]
[1726847704100,0.39148,2554.3,2554.0,8.9298]
[1726847704289,0.3877,2554.6,2554.2,0.39149]
[1726847704290,0.39147,2554.4,2554.2,0.39149]
[1726847704501,1.3663,2554.6,2554.0,5.722]
[1726847704789,1.3663,2554.6,2554.2,0.39148]
[1726847704790,0.39146,2554.4,2554.2,0.39148]
[1726847705190,0.39148,2554.3,2554.0,5.722]
[1726847705385,0.39146,2554.4,2554.0,8.9298]
[1726847705689,0.77865,2554.5,2554.3,0.39147]
[1726847705886,0.77865,2554.5,2554.2,0.39148]
[1726847705887,0.39146,2554.4,2554.2,0.39148]
[1726847706081,0.39148,2554.3,2554.1,0.39149]
[1726847706277,0.3915,2554.1,2554.0,8.9298]
[1726847706590,0.97865,2554.4,2554.0,9.32131]
[1726847707082,0.3915,2554.2,2554.0,9.32131]
[1726847707387,0.97865,2554.4,2554.0,9.32131]
[1726847707388,0.97865,2554.4,2554.0,3.59931]
[1726847707589,0.3915,2554.2,2554.0,3.59931]
[1726847707789,0.3872,2554.5,2554.0,3.2078]
[1726847707996,0.77865,2554.5,2554.0,3.2078]
[1726847708189,0.77865,2554.5,2554.4,0.39146]
[1726847708400,0.3877,2554.6,2554.1,0.97875]
[1726847708686,0.77913,2554.6,2554.4,0.39145]
[1726847708893,0.77913,2554.6,2554.4,0.39146]
[1726847709484,0.77913,2554.6,2554.4,0.39145]
[1726847709889,0.3877,2554.6,2554.5,0.39144]
[1726847710089,0.39139,2554.9,2554.5,3.9144]
[1726847710297,0.3914,2554.8,2554.3,9.90847]
[1726847710492,4.95323,2555.0,2554.3,8.9298]
[1726847710797,0.3914,2554.8,2554.6,0.39142]
[1726847711095,0.767,2555.0,2554.3,9.90846]
[1726847711390,3.39699796,2555.2,2554.6,3.2078]
[1726847711391,3.2078,2555.2,2554.6,3.2078]
[1726847711600,3.2078,2555.2,2554.9,0.39137]
[1726847711601,0.39134,2555.2,2554.9,0.39137]
[1726847711796,0.39134,2555.2,2554.7,0.4057]
[1726847711994,0.39134,2555.2,2555.0,0.39136]
[1726847712298,0.39134,2555.2,2554.9,0.39137]
[1726847712686,0.7941,2555.4,2555.1,0.39134]
[1726847712891,2.01482796,2555.9,2555.2,8.9298]
[1726847713189,2.01482796,2555.9,2555.3,0.816]
[1726847713190,0.39123,2555.9,2555.3,0.816]
[1726847713386,0.39122,2556.0,2555.6,0.39127]
[1726847713587,0.4052,2556.2,2555.8,0.39124]
[1726847713588,0.79639,2556.2,2555.8,0.39124]
[1726847713791,2.01482796,2556.5,2555.8,0.39124]
[1726847713792,2.01482796,2556.5,2556.1,3.59899]
[1726847714023,0.97769,2556.9,2556.2,6.1194]
[1726847714199,0.39113,2556.6,2556.2,6.1194]
[1726847714494,0.7891,2557.2,2556.2,6.51058]
[1726847714495,3.2078,2557.0,2556.2,6.51058]
[1726847714883,3.2078,2557.0,2556.2,6.1194]
[1726847715084,0.3911,2556.8,2556.3,0.39115]
[1726847715289,0.39108,2556.9,2556.4,0.39115]
[1726847715498,0.39108,2556.9,2556.2,6.1194]
[1726847715499,0.7891,2557.2,2556.6,0.39111]
[1726847715691,0.7891,2557.2,2556.2,6.1194]
[1726847715692,0.7891,2557.2,2556.4,3.2078]
[1726847715901,0.7891,2557.2,2556.8,0.39108]
[1726847715902,0.4039,2557.2,2556.8,0.39108]
[1726847716199,0.39107,2557.0,2556.5,0.39113]
[1726847716400,3.2078,2557.1,2556.4,3.2078]
[1726847716999,3.2078,2557.1,2556.5,0.39114]
[1726847717193,0.39106,2557.0,2556.5,0.39114]
[1726847717499,3.2078,2557.1,2556.4,3.2078]
[1726847717688,0.39106,2557.0,2556.5,0.39114]
[1726847717888,0.39105,2557.1,2556.7,0.3911]
[1726847718090,0.4039,2557.2,2556.8,0.39108]
[1726847718291,0.79494,2557.2,2556.8,0.39108]
[1726847718603,0.3966,2557.8,2557.1,3.59884]
[1726847718803,0.391,2557.4,2557.1,3.2078]
[1726847719388,4.18519,2557.7,2557.1,3.2078]
[1726847719596,3.2078,2557.4,2556.9,5.702]
[1726847720101,0.39102,2557.3,2557.0,0.39105]
[1726847720793,0.39105,2557.1,2556.9,5.702]
[1726847720994,3.2078,2557.4,2556.9,6.09307]
[1726847720995,0.39104,2557.2,2556.9,6.09307]
[1726847721195,0.39105,2557.1,2556.9,5.702]
[1726847721499,0.39104,2557.2,2556.9,6.09307]
[1726847722002,0.3966,2557.8,2556.9,6.09307]
[1726847722003,0.39102,2557.3,2556.9,5.702]
[1726847722298,0.39102,2557.3,2557.1,0.39104]
[1726847722498,0.39102,2557.3,2556.9,5.702]
[1726847722499,0.391,2557.5,2556.9,5.702]
[1726847722693,0.391,2557.5,2557.2,0.39102]
[1726847723002,0.391,2557.4,2557.1,0.39103]
[1726847723203,0.39101,2557.3,2557.1,0.39103]
[1726847724187,0.97743,2557.6,2557.1,0.39103]
[1726847724388,0.39102,2557.3,2557.1,0.39103]
[1726847725692,0.97743,2557.6,2557.0,0.39105]
[1726847726001,0.39106,2557.0,2556.5,3.2078]
[1726847726197,0.39106,2557.0,2556.6,5.7]
[1726847726388,0.97758,2557.2,2556.7,0.3911]
[1726847726603,0.9775,2557.4,2556.9,0.39107]
[1726847726795,0.39103,2557.2,2557.0,0.39106]
[1726847727805,0.9775,2557.4,2556.8,0.4101]
[1726847728002,0.39107,2557.0,2556.6,5.7]
[1726847728204,0.97758,2557.2,2556.7,0.39109]
[1726847728402,0.39108,2556.9,2556.7,0.39109]
[1726847728703,3.2078,2557.3,2556.6,5.7]
[1726847729007,0.39108,2556.9,2556.6,5.7]
[1726847729210,0.39107,2557.0,2556.8,0.39108]
[1726847729499,0.39107,2557.0,2556.8,0.39109]
[1726847730295,3.2078,2557.0,2556.6,5.7]
[1726847730509,1.75483,2557.1,2556.8,0.39108]
[1726847730809,0.39107,2556.9,2556.8,0.39108]
[1726847731003,0.3911,2556.8,2556.7,0.3911]
[1726847731607,0.39108,2556.9,2556.8,0.39109]
[1726847731806,0.39109,2556.8,2556.7,0.39109]
[1726847732101,0.7772,2557.1,2556.7,0.39109]
[1726847732102,0.9775,2557.4,2557.0,0.39105]
[1726847732310,0.39102,2557.3,2557.2,0.39102]
[1726847732507,1.37367,2557.5,2556.7,4.18556]
[1726847732706,0.39103,2557.2,2557.1,0.39104]
[1726847732902,1.37367,2557.5,2557.1,0.39104]
[1726847733315,0.39103,2557.2,2557.1,0.39104]
[1726847733702,0.39103,2557.2,2556.7,4.18556]
[1726847733703,3.9104,2557.2,2556.7,3.2078]
[1726847733907,3.2078,2557.3,2556.7,3.2078]
[1726847734112,3.2078,2557.3,2556.8,0.39109]
[1726847734113,0.39107,2557.0,2556.8,0.39109]
[1726847734519,0.39107,2557.0,2556.8,0.39108]
[1726847734723,0.97762,2557.1,2556.7,3.2078]
[1726847735019,3.5847,2557.3,2556.7,3.2078]
[1726847735223,3.5847,2557.3,2556.7,6.5878]
[1726847735224,0.39105,2557.1,2556.7,6.5878]
[1726847735418,0.3962,2557.5,2557.0,3.38]
[1726847735816,0.3962,2557.5,2557.0,3.7885]
[1726847736018,0.39101,2557.4,2557.2,0.39102]
[1726847736317,0.391,2557.4,2557.2,0.39102]
[1726847737116,3.2078,2557.7,2557.3,0.39101]
[1726847737316,3.2078,2557.7,2557.2,0.39102]
[1726847737317,4.1852,2557.7,2557.2,0.39102]
[1726847737524,0.391,2557.4,2557.2,0.39102]
[1726847737730,0.39099,2557.5,2557.3,0.391]
[1726847737925,4.1852,2557.7,2557.0,5.14544]
[1726847738229,0.39093,2557.9,2557.7,0.39094]
[1726847738521,0.7692,2558.0,2557.4,3.38]
[1726847738522,0.7692,2558.0,2557.4,9.079]
[1726847738729,0.39094,2557.9,2557.7,0.39094]
[1726847738917,0.39094,2557.8,2557.7,0.39094]
[1726847739118,0.7692,2558.0,2557.7,0.39094]
[1726847739524,0.39092,2557.9,2557.7,0.39094]
[1726847739724,0.39094,2557.8,2557.7,0.39094]
[1726847740329,0.39098,2557.5,2557.4,5.699]
[1726847741422,0.79568,2557.5,2557.4,5.699]
[1726847741629,0.79568,2557.5,2557.4,6.09]
[1726847741825,0.79568,2557.5,2557.4,5.699]
[1726847741826,1.77314,2557.5,2557.4,5.699]
[1726847742122,0.39103,2557.2,2557.0,6.4868]
[1726847742326,5.29256,2557.5,2557.0,6.4868]
[1726847742327,0.39102,2557.3,2557.2,0.39102]
[1726847742519,0.391,2557.4,2557.3,0.391]
[1726847742731,0.39102,2557.3,2557.2,0.39102]
[1726847742919,0.39101,2557.4,2557.3,0.39101]
[1726847743325,0.39101,2557.3,2557.2,0.39102]
[1726847744025,0.39101,2557.4,2557.3,0.39101]
[1726847744223,0.39101,2557.4,2557.2,0.39102]
[1726847744428,0.4047,2557.5,2557.0,6.4868]
[1726847744730,0.391,2557.4,2557.2,0.39102]
[1726847746043,0.39103,2557.2,2556.9,3.2078]
[1726847746222,0.39103,2557.2,2556.7,0.4073]
[1726847746223,0.39108,2556.9,2556.7,6.09009]
[1726847746535,0.39107,2557.0,2556.8,0.39109]
[1726847746832,0.39105,2557.1,2556.9,0.39107]
[1726847747028,0.39103,2557.2,2557.0,0.39105]
[1726847747221,0.3709,2557.3,2556.7,6.67676]
[1726847747222,0.3709,2557.3,2556.7,9.079]
[1726847747423,0.39103,2557.2,2557.0,0.39105]
[1726847747620,5.09839,2557.7,2557.0,6.5878]
[1726847747836,0.39096,2557.7,2557.5,0.39098]
[1726847748026,0.39096,2557.7,2557.1,0.7986]
[1726847748027,4.18516,2557.8,2557.4,0.391]
[1726847748332,3.2078,2557.8,2557.7,0.39095]
[1726847748529,0.7622,2557.9,2557.7,0.39095]
[1726847748835,0.7622,2557.9,2557.6,0.39096]
[1726847748836,0.39094,2557.8,2557.6,0.39096]
[1726847749325,0.7622,2557.9,2557.7,0.39095]
[1726847749535,0.39094,2557.8,2557.6,0.39096]
[1726847749834,0.39094,2557.8,2557.5,8.8938]
[1726847750037,0.39094,2557.8,2557.6,0.39096]
[1726847750328,0.39095,2557.7,2557.5,0.39097]
[1726847751238,0.39095,2557.7,2557.4,4.02511965]
[1726847751423,0.39095,2557.7,2557.5,0.39098]
[1726847751824,1.73952,2557.9,2557.5,0.39097]
[1726847751825,0.7622,2557.9,2557.5,0.39097]
[1726847752025,0.39095,2557.7,2557.5,0.39097]
[1726847752224,1.15313,2557.9,2557.7,0.39095]
[1726847752426,4.56945,2558.1,2557.8,3.77094]
[1726847752427,3.2078,2558.1,2557.8,3.77094]
[1726847752626,3.2078,2558.1,2557.8,3.38]
[1726847752829,4.121,2558.4,2558.2,0.39086]
[1726847753029,0.39084,2558.4,2558.3,3.2078]
[1726847755334,0.39082,2558.6,2558.3,7.1166]
[1726847755635,0.39082,2558.6,2558.3,3.97066]
[1726847755932,0.78201,2558.7,2558.4,0.39084]
[1726847756328,0.39082,2558.6,2558.4,0.39084]
[1726847756728,0.39082,2558.6,2558.3,3.97065]
[1726847757131,0.39084,2558.4,2558.3,3.2078]
[1726847757531,0.39084,2558.4,2558.0,3.2078]
[1726847757532,0.3909,2558.1,2558.0,3.2078]
[1726847758432,2.90446727,2558.3,2558.0,3.2078]
[1726847758743,0.39088,2558.2,2558.0,3.5987]
[1726847758930,2.31817727,2558.3,2558.0,3.2078]
[1726847759236,1.92730727,2558.3,2558.0,3.5904]
[1726847759538,1.52000727,2558.3,2558.2,3.38]
[1726847759743,1.91086727,2558.4,2558.2,3.38]
[1726847760033,1.91086727,2558.4,2558.2,3.77087]
[1726847760238,1.91086727,2558.4,2558.2,3.38]
[1726847760239,0.39086,2558.3,2558.2,3.38]
[1726847760436,1.52000727,2558.4,2558.2,3.38]
[1726847760640,1.52000727,2558.4,2558.2,3.77087]
[1726847760826,1.52000727,2558.5,2558.3,3.2078]
[1726847761034,1.91083727,2558.5,2558.3,3.2078]
[1726847761232,1.91084727,2558.5,2558.3,3.2078]
[1726847761645,0.39084,2558.4,2558.3,3.2078]
[1726847761837,1.52000727,2558.5,2558.3,3.2078]
[1726847762331,1.52000727,2558.5,2558.3,3.59866]
[1726847762332,1.91084727,2558.5,2558.3,3.59866]
[1726847762531,1.91084727,2558.5,2558.3,3.2078]
[1726847762741,1.91084727,2558.5,2558.3,3.59866]
[1726847763241,1.52000727,2558.5,2558.4,0.39084]
[1726847763444,3.38304796,2558.7,2558.4,0.39084]
[1726847763445,1.52000727,2558.6,2558.4,0.39084]
[1726847763644,1.52000727,2558.6,2558.3,3.2078]
[1726847763645,1.91082727,2558.6,2558.3,3.2078]
[1726847763840,1.91082727,2558.6,2558.4,0.39084]
[1726847764242,1.52000727,2558.6,2558.5,3.77083]
[1726847764541,1.91078727,2558.8,2558.6,0.3908]
[1726847764745,1.91078727,2558.8,2558.6,1.1702]
[1726847764933,1.91078727,2558.8,2558.6,0.7794]
[1726847765134,1.91078727,2558.8,2558.6,1.17021]
[1726847765339,0.39078,2558.8,2558.6,1.17021]
[1726847765542,0.39079,2558.8,2558.6,0.7794]
[1726847765736,0.39079,2558.8,2558.6,1.17021]
[1726847765933,1.52000727,2558.9,2558.7,3.2078]
[1726847766140,0.39079,2558.8,2558.7,3.2078]
[1726847766445,0.39078,2558.8,2558.7,3.2078]
[1726847768245,0.39086,2558.3,2558.2,3.2078]
[1726847768543,0.97707,2558.6,2558.2,3.59867]
[1726847768748,0.39086,2558.3,2558.2,3.59867]
[1726847769048,0.39086,2558.3,2558.2,3.2078]
[1726847769243,0.39085,2558.4,2558.2,3.59867]
[1726847769545,0.39086,2558.3,2558.2,3.59867]
[1726847769949,0.39086,2558.3,2558.2,3.2078]
[1726847770244,0.39085,2558.4,2558.2,3.2078]
[1726847770444,1.89190727,2558.7,2558.2,3.2078]
[1726847770646,1.89190727,2558.7,2558.6,0.39081]
[1726847770847,0.3908,2558.7,2558.5,3.2078]
[1726847771046,0.3908,2558.7,2558.5,3.59862]
[1726847771352,0.3908,2558.7,2558.5,0.39083]
[1726847771353,0.39081,2558.7,2558.5,0.39083]
[1726847772645,1.52000727,2559.0,2558.7,0.39079]
[1726847772838,1.52000727,2559.0,2558.9,1.3677]
[1726847773040,1.91068727,2559.5,2559.3,0.39071]
[1726847773251,0.39068,2559.5,2559.3,0.3907]
[1726847773450,0.76137,2559.6,2559.3,0.39069]
[1726847773644,0.76137,2559.6,2559.3,0.80099]
[1726847773645,0.39067,2559.6,2559.3,0.80099]
[1726847773852,1.52000727,2559.8,2559.5,3.2078]
[1726847774148,2.66232727,2559.9,2559.6,0.39066]
[1726847774447,0.39063,2559.8,2559.5,3.2078]
[1726847774659,0.7517,2559.9,2559.4,4.14908]
[1726847774660,0.39065,2559.7,2559.4,3.7584]
[1726847774854,0.7517,2559.9,2559.5,0.39066]
[1726847775149,0.97662,2559.7,2559.3,0.4103]
[1726847775450,0.39068,2559.5,2559.3,0.4103]
[1726847775747,0.39069,2559.4,2559.3,0.4103]
[1726847775958,0.39071,2559.3,2559.2,3.2078]
[1726847776152,0.3907,2559.4,2559.2,3.2078]
[1726847776652,0.39069,2559.5,2559.2,3.59852]
[1726847776855,3.24825727,2559.9,2559.2,3.2078]
[1726847777046,6.45605727,2559.9,2559.2,3.2078]
[1726847777350,0.3907,2559.4,2559.2,3.2078]
[1726847777557,0.39071,2559.3,2559.2,3.2078]
[1726847779449,1.52000727,2559.7,2559.2,19.16029534]
[1726847779648,3.0646578,2560.4,2559.6,6.5878]
[1726847779649,0.97657,2559.9,2559.6,6.5878]
[1726847779855,0.39065,2559.7,2559.6,6.5878]
[1726847780152,0.39062,2559.9,2559.7,0.39065]
[1726847780352,0.3854,2560.2,2559.8,3.9064]
[1726847780553,5.73314848,2560.8,2559.8,3.9064]
[1726847780554,1.52000727,2560.9,2560.1,3.38]
[1726847780855,0.7716,2561.0,2560.5,0.39052]
[1726847781151,0.39047,2560.9,2560.5,3.77051]
[1726847781351,0.7716,2561.0,2560.5,6.5878]
[1726847781649,0.39049,2560.8,2560.5,6.5878]
[1726847782055,0.97617,2560.9,2560.5,6.5878]
[1726847782355,0.39051,2560.6,2560.5,3.2078]
[1726847782556,0.39051,2560.7,2560.5,3.2078]
[1726847783255,0.39049,2560.8,2560.5,3.2078]
[1726847783461,0.39047,2560.9,2560.6,0.3905]
[1726847783749,1.52000727,2561.5,2560.9,0.39046]
[1726847783957,0.39042,2561.2,2561.0,5.677]
[1726847784143,0.97597,2561.5,2561.0,5.677]
[1726847784341,0.39043,2561.2,2561.0,5.677]
[1726847784541,0.39042,2561.2,2561.0,5.677]
[1726847785047,0.97597,2561.4,2561.0,5.677]
[1726847785247,0.39043,2561.1,2561.0,5.677]
[1726847785649,0.97594,2561.5,2561.0,5.677]
[1726847785860,0.39043,2561.1,2561.0,5.677]
[1726847789053,0.4106,2561.2,2561.0,6.06745]
[1726847789257,0.4106,2561.2,2561.1,3.2078]
[1726847789258,0.80102,2561.2,2561.1,3.2078]
[1726847789552,0.39048,2560.8,2560.7,3.2078]
[1726847789942,1.36668,2560.8,2560.7,3.2078]
[1726847790544,5.27148,2560.8,2560.7,3.2078]
[1726847790742,5.27148,2560.8,2560.2,3.2078]
[1726847790743,0.39055,2560.3,2560.2,3.2078]
[1726847791243,0.39055,2560.3,2560.2,3.59837]
[1726847791446,1.35437,2560.7,2560.2,6.5878]
[1726847791447,0.3781,2560.7,2560.2,6.5878]
[1726847791650,0.39051,2560.6,2560.5,0.39052]
[1726847791851,0.39052,2560.6,2560.2,6.5878]
[1726847792055,0.39052,2560.6,2560.5,0.39052]
[1726847792558,0.39052,2560.5,2560.4,0.39053]
[1726847793253,0.39052,2560.6,2560.4,0.39053]
[1726847793463,0.39052,2560.5,2560.4,0.39053]
[1726847793648,0.39052,2560.6,2560.4,0.39053]
[1726847793958,0.39052,2560.5,2560.4,0.39053]
[1726847794144,0.3781,2560.7,2560.4,0.39053]
[1726847794145,0.39052,2560.6,2560.4,0.39053]
[1726847794349,0.39052,2560.5,2560.3,0.78514]
[1726847794853,0.3781,2560.7,2560.2,6.5878]
[1726847795050,0.39055,2560.3,2560.2,3.2078]
[1726847795254,1.36694,2560.3,2560.2,3.2078]
[1726847795744,1.36694,2560.3,2559.9,3.2078]
[1726847795745,3.9056,2560.3,2559.9,3.2078]
[1726847795960,4.6991,2560.2,2559.3,3.2078]
[1726847796153,0.39069,2559.4,2559.3,3.2078]
[1726847796657,0.4011,2559.5,2559.3,3.2078]
[1726847796952,1.36806,2560.2,2559.4,3.38]
[1726847797161,0.4011,2560.1,2559.4,3.38]
[1726847797351,0.3906,2560.0,2559.8,0.39062]
[1726847797748,0.3906,2560.0,2559.7,0.39064]
[1726847798061,0.4011,2560.1,2559.6,3.2078]
[1726847798258,0.39055,2560.4,2560.1,0.39058]
[1726847798445,1.77058,2560.6,2559.9,8.8838]
[1726847798757,0.39055,2560.4,2560.1,0.39058]
[1726847799053,0.7943,2560.6,2560.2,3.2078]
[1726847799054,0.39056,2560.3,2560.2,3.2078]
[1726847799956,10.29616,2560.3,2559.8,3.2078]
[1726847800157,0.97658,2559.9,2559.4,3.5998]
[1726847800360,0.39068,2559.5,2559.4,0.392]
[1726847800558,3.2078,2560.0,2559.5,0.39068]
[1726847800757,0.97645,2560.2,2559.4,3.5998]
[1726847800955,1.52000727,2560.6,2559.7,3.38]
[1726847800956,0.97629,2560.6,2559.7,3.38]
[1726847801157,3.2078,2560.7,2559.8,0.39063]
[1726847801158,0.39061,2560.0,2559.8,0.39063]
[1726847801459,0.39061,2560.0,2559.8,0.39062]
[1726847802660,0.97632,2560.5,2559.8,3.9064]
[1726847802854,4.121,2560.6,2560.2,0.39056]
[1726847802855,0.39055,2560.4,2560.2,0.39056]
[1726847803161,0.9763,2560.6,2560.1,0.76928]
[1726847803464,0.39056,2560.3,2560.1,0.76928]
[1726847803657,0.39057,2560.2,2560.1,0.3787]
[1726847804955,0.39064,2559.8,2559.6,0.39066]
[1726847805156,0.39064,2559.8,2559.7,0.39065]
[1726847805369,0.39059,2560.1,2559.6,0.3787]
[1726847805553,0.97651,2560.0,2559.6,0.3787]
[1726847805758,0.39065,2559.7,2559.6,0.3787]
[1726847805960,0.97651,2560.0,2559.6,0.3787]
[1726847806261,0.39064,2559.8,2559.6,0.76936]
[1726847806460,0.39064,2559.8,2559.6,0.76935]
[1726847806662,0.97651,2560.0,2559.6,0.3787]
[1726847806860,0.39064,2559.8,2559.6,0.76935]
[1726847808365,0.39065,2559.7,2559.6,0.3787]
[1726847808753,0.39064,2559.8,2559.6,0.76935]
[1726847808959,0.39065,2559.7,2559.6,0.3787]
[1726847809461,0.39065,2559.7,2559.5,3.2078]
[1726847809462,1.36732,2559.6,2559.5,3.2078]
[1726847809654,0.9767,2559.5,2559.1,9.284]
[1726847809858,0.9767,2559.5,2559.4,3.2078]
[1726847809859,0.39069,2559.5,2559.4,3.2078]
[1726847810173,4.121,2560.1,2560.0,0.3906]
[1726847810467,4.121,2560.1,2560.0,3.7706]
[1726847810758,4.121,2560.1,2560.0,7.677]
[1726847810965,0.39056,2560.3,2560.1,0.39058]
[1726847811372,0.97628,2560.6,2560.1,0.39058]
[1726847811557,0.97634,2560.5,2560.0,1.1723]
[1726847811864,0.97634,2560.5,2560.1,0.39059]
[1726847812065,0.3977,2560.7,2560.0,0.7817]
[1726847812366,0.3977,2560.7,2560.0,5.13819]
[1726847812661,0.9762,2560.8,2560.3,0.39055]
[1726847812870,0.39053,2560.5,2560.3,0.39055]
[1726847813065,0.39052,2560.6,2560.4,0.39054]
[1726847813271,0.39054,2560.4,2560.2,0.39056]
[1726847813565,0.39053,2560.5,2560.3,0.39055]
[1726847814163,0.39054,2560.4,2560.2,0.39056]
[1726847814368,0.97624,2560.7,2560.1,0.3891]
[1726847814566,0.97632,2560.5,2560.0,0.7817]
[1726847814863,0.97624,2560.7,2560.0,0.7817]
[1726847814864,0.9762,2560.8,2560.0,5.13819]
[1726847815066,0.9762,2560.8,2560.3,0.39055]
[1726847815266,0.39052,2560.6,2560.4,0.39054]
[1726847815562,4.5182,2561.0,2560.5,0.39052]
[1726847815563,0.3905,2560.7,2560.5,0.39052]